bitfinex/quotes_ETHUSD_20241124
["timestamp","ask_amount","ask_price","bid_price","bid_amount"]
[1732447434538,0.55,3354.6,3353.2,0.77758664]
[1732447434828,0.60207276,3354.6,3353.2,0.77758664]
[1732447435594,1.3406,3354.5,3353.2,0.77758664]
[1732447436000,0.05207276,3354.4,3353.2,0.77758664]
[1732447436420,0.05207276,3354.4,3353.3,0.38547902]
[1732447436735,0.05207276,3354.4,3353.4,0.1545858]
[1732447437045,1.3406,3354.5,3353.4,0.54006482]
[1732447437337,1.3406,3354.5,3353.5,0.76827137]
[1732447437531,1.3406,3354.5,3353.5,0.38547902]
[1732447438236,1.3406,3354.5,3353.5,1.83857902]
[1732447438409,1.3406,3354.5,3353.6,0.23298042]
[1732447439221,1.3406,3354.5,3353.6,3.61845944]
[1732447439536,1.3406,3354.5,3353.7,0.38547902]
[1732447439903,1.3406,3354.5,3353.6,0.23298042]
[1732447440101,1.3406,3354.5,3353.7,0.48406662]
[1732447440803,1.3406,3354.5,3353.7,0.86954564]
[1732447441199,1.3406,3354.5,3353.8,0.2974]
[1732447441399,1.4396,3354.9,3353.8,0.2974]
[1732447441629,0.0517016,3354.8,3353.9,1.15972391]
[1732447442504,1.4396,3354.7,3353.9,0.77424489]
[1732447442697,0.05176801,3354.6,3353.8,0.2974]
[1732447443244,1.4396,3355.1,3354.0,4.4411]
[1732447443397,1.4396,3355.1,3354.0,2.12397902]
[1732447443597,0.05175292,3355.0,3354.1,3.38547902]
[1732447443834,0.05175292,3355.0,3354.2,0.88434108]
[1732447444037,1.4396,3355.1,3354.5,0.5]
[1732447444211,0.05175292,3354.9,3354.5,0.5]
[1732447444413,1.4396,3355.1,3354.5,0.88547902]
[1732447444944,8.87140243,3357.1,3354.5,0.5]
[1732447445240,8.96043158,3357.0,3354.5,0.5]
[1732447445402,8.92318251,3357.0,3354.5,0.5]
[1732447445598,9.02318251,3357.0,3354.5,0.5]
[1732447445829,0.90231825,3356.9,3354.5,0.5]
[1732447446034,0.03725441,3356.8,3354.5,0.5]
[1732447446335,0.55,3356.7,3354.5,0.5]
[1732447446506,0.55,3356.5,3354.5,0.86163391]
[1732447446703,0.05185855,3356.4,3354.5,0.86163391]
[1732447446927,8.87140243,3356.3,3354.5,0.86163391]
[1732447447136,0.0522388,3356.2,3354.5,0.86163391]
[1732447447317,0.0522388,3356.2,3354.6,0.15445129]
[1732447447719,1.318,3356.1,3354.6,0.15445129]
[1732447448053,0.05221467,3356.0,3354.6,0.15445129]
[1732447448341,0.05221467,3356.0,3354.7,1.7385]
[1732447448554,0.55,3355.9,3354.7,2.12397902]
[1732447448702,1.318,3356.1,3354.8,3.98823356]
[1732447448902,0.05221467,3356.0,3354.9,0.68287902]
[1732447449155,0.05221467,3356.0,3355.1,1.4411]
[1732447449360,1.318,3356.4,3355.2,0.38547902]
[1732447449531,1.318,3356.4,3355.2,3.72211843]
[1732447450855,0.55,3356.3,3355.2,3.72211843]
[1732447451056,0.55,3356.3,3355.3,0.58434108]
[1732447451363,0.55,3356.1,3355.3,0.9698201]
[1732447451566,1.318,3356.4,3355.3,0.58434108]
[1732447451567,0.55,3356.3,3355.3,0.58434108]
[1732447451735,0.55,3356.3,3355.4,0.57448728]
[1732447451928,0.55,3356.3,3355.5,1.4411]
[1732447452127,0.05255552,3356.2,3355.6,0.38547902]
[1732447452863,1.318,3356.8,3355.6,0.38547902]
[1732447453112,1.318,3356.8,3355.7,0.22093714]
[1732447453225,0.05255552,3356.7,3355.8,1.4411]
[1732447453430,0.05255552,3356.7,3355.8,4.82657902]
[1732447453656,1.318,3357.3,3355.8,4.82657902]
[1732447453864,1.318,3357.3,3355.9,0.55460108]
[1732447454559,1.318,3357.3,3355.9,0.9400801]
[1732447454725,0.05255552,3357.2,3356.0,0.38547902]
[1732447454925,1.318,3357.3,3356.0,0.38547902]
[1732447455126,0.05255552,3357.2,3356.1,0.53811801]
[1732447455368,1.318,3357.3,3356.1,0.53811801]
[1732447455566,0.05255552,3357.2,3356.1,0.53811801]
[1732447455778,1.318,3357.3,3356.1,0.92359703]
[1732447455954,0.05255552,3357.2,3356.1,0.92359703]
[1732447456133,1.318,3357.3,3356.1,0.92359703]
[1732447456328,0.05255552,3357.2,3356.1,0.53811801]
[1732447456529,1.318,3357.3,3356.1,0.53811801]
[1732447456731,1.318,3357.6,3355.9,1.4059]
[1732447456968,1.318,3357.6,3356.2,1.4059]
[1732447457178,1.318,3357.6,3356.3,0.56461692]
[1732447458079,1.318,3359.1,3356.4,1.4059]
[1732447458272,8.90862953,3359.0,3356.4,1.4059]
[1732447458473,0.55,3358.7,3356.5,0.1791379]
[1732447458691,0.1,3359.3,3356.5,0.1791379]
[1732447458692,1.318,3358.4,3356.5,0.1791379]
[1732447458897,1.318,3358.2,3356.5,0.1791379]
[1732447459212,0.55,3358.1,3356.6,0.19705169]
[1732447459860,1.318,3358.0,3356.6,0.19705169]
[1732447460261,0.55,3357.9,3356.6,0.19705169]
[1732447460509,0.55,3357.9,3356.7,0.19884307]
[1732447460716,1.318,3358.0,3357.7,3.0]
[1732447460898,1.318,3358.0,3356.7,0.19884307]
[1732447461465,1.318,3358.0,3356.8,1.3578]
[1732447461701,1.318,3358.0,3357.7,3.0]
[1732447461994,0.55,3357.9,3357.7,3.0]
[1732447462200,0.60169163,3357.9,3356.9,0.19421221]
[1732447463382,0.60169163,3357.9,3356.9,0.55241322]
[1732447463663,0.60169163,3357.9,3356.8,1.3578]
[1732447463664,0.60169163,3357.9,3357.0,0.19102132]
[1732447463895,8.87140243,3358.7,3357.1,0.38547902]
[1732447464205,0.05000782,3358.6,3357.3,1.3578]
[1732447464504,8.87140243,3359.3,3358.0,0.5]
[1732447464713,8.87140243,3359.2,3358.0,0.5]
[1732447465008,8.92141025,3359.2,3358.0,0.5]
[1732447465861,0.55,3359.0,3358.0,0.5]
[1732447466292,0.58722144,3359.0,3358.0,0.5]
[1732447466490,0.55,3358.8,3358.0,0.5]
[1732447466806,8.9216034,3358.7,3358.0,0.5]
[1732447467105,0.768,3358.6,3358.0,0.5]
[1732447467290,9.63940243,3358.6,3358.0,0.5]
[1732447467606,0.05020097,3358.5,3358.0,0.5]
[1732447468911,0.05020097,3358.5,3358.0,1.8578]
[1732447469135,0.05020097,3358.5,3358.1,0.18578]
[1732447469409,0.9167114,3359.4,3358.1,0.57125902]
[1732447469579,0.9167114,3359.4,3358.2,0.5429059]
[1732447469766,0.05019494,3359.3,3358.2,0.5429059]
[1732447469966,0.9167114,3359.4,3358.2,0.5429059]
[1732447470213,0.05019494,3359.2,3358.2,0.5429059]
[1732447470509,0.9167114,3359.4,3358.2,0.5429059]
[1732447470815,0.9167114,3359.4,3358.1,3.57125902]
[1732447470816,0.05019494,3359.3,3358.3,0.59719649]
[1732447471131,0.9167114,3359.4,3358.3,0.59719649]
[1732447471429,0.05019494,3359.3,3358.3,0.59719649]
[1732447471568,0.05019494,3359.3,3358.7,0.2974]
[1732447471775,8.87140243,3360.6,3358.8,1.3578]
[1732447471990,0.7866,3361.0,3358.8,1.3578]
[1732447471991,0.04906796,3359.2,3359.1,1.3578]
[1732447472192,8.87140243,3360.9,3359.1,2.16098804]
[1732447472396,8.87140243,3360.9,3359.2,0.80318804]
[1732447472581,0.7866,3360.7,3359.3,0.2160988]
[1732447472781,0.7866,3360.7,3359.3,1.01928684]
[1732447472981,0.7866,3360.7,3359.4,0.80318804]
[1732447473596,0.7866,3360.5,3358.9,0.16552]
[1732447473783,0.7866,3360.4,3359.7,3.0]
[1732447473989,0.97149803,3360.4,3358.7,1.3578]
[1732447474200,0.7866,3360.3,3358.7,1.3578]
[1732447474579,0.22210565,3360.4,3358.3,0.41770902]
[1732447474580,0.55,3359.9,3358.3,1.3578]
[1732447474784,1.3366,3359.5,3357.9,1.3578]
[1732447475000,0.55,3359.3,3357.9,1.3578]
[1732447475411,1.3366,3359.1,3356.7,0.29788941]
[1732447475661,0.55,3358.9,3357.6,1.3578]
[1732447475804,0.55,3358.7,3357.6,1.3578]
[1732447475978,1.3366,3358.5,3357.6,1.3578]
[1732447476477,1.3366,3358.5,3357.3,1.3578]
[1732447478588,0.55,3358.3,3357.3,1.3578]
[1732447478995,0.55,3358.1,3357.0,1.3578]
[1732447479315,11.20886491,3358.1,3355.7,1.24257228]
[1732447479474,10.25543479,3358.1,3356.5,1.3578]
[1732447480781,10.25543479,3358.1,3357.7,3.0]
[1732447480998,10.25543479,3358.1,3356.5,1.3578]
[1732447481610,10.25543479,3358.1,3356.1,1.4144]
[1732447483447,10.25543479,3358.1,3355.6,0.36575474]
[1732447483604,10.25543479,3358.1,3356.8,1.4144]
[1732447484926,10.25543479,3358.1,3358.0,0.125]
[1732447488545,0.1,3357.9,3357.0,1.189337]
[1732447488747,0.7866,3357.7,3357.0,1.189337]
[1732447488955,0.82383919,3357.6,3357.0,1.189337]
[1732447489345,0.8703873,3357.6,3357.0,1.189337]
[1732447489807,0.03723898,3357.5,3357.0,1.189337]
[1732447490008,1.06641793,3357.5,3357.0,1.189337]
[1732447490450,0.04654811,3357.4,3357.0,1.189337]
[1732447490742,0.55,3357.3,3357.0,1.189337]
[1732447491111,0.55,3357.5,3357.0,1.189337]
[1732447491315,0.04654811,3357.2,3357.0,1.189337]
[1732447491515,8.90863674,3357.5,3357.0,1.189337]
[1732447491718,0.04654811,3357.1,3357.0,1.189337]
[1732447492228,8.87140243,3357.5,3357.0,1.189337]
[1732447492513,0.04642127,3357.1,3357.0,1.189337]
[1732447492845,0.04628842,3357.1,3357.0,1.189337]
[1732447493152,0.0372356,3357.3,3357.0,1.189337]
[1732447493309,8.87140243,3357.4,3357.0,1.189337]
[1732447493726,0.55,3357.2,3357.0,1.189337]
[1732447494136,0.55,3357.3,3357.0,1.189337]
[1732447494481,0.55,3357.1,3357.0,1.189337]
[1732447494651,1.3366,3357.1,3357.0,1.189337]
[1732447495250,1.38288842,3357.1,3357.0,1.189337]
[1732447495544,0.59628842,3357.1,3357.0,1.189337]
[1732447495909,10.25429085,3357.1,3357.0,1.189337]
[1732447496149,11.27971994,3357.1,3357.0,1.189337]
[1732447496315,11.27971994,3357.1,3357.0,0.891937]
[1732447497544,0.55,3357.0,3356.0,4.189495]
[1732447497754,0.55,3357.0,3356.0,1.189495]
[1732447497755,0.55,3356.8,3356.0,1.189495]
[1732447497954,0.55,3356.6,3356.0,1.189495]
[1732447498380,0.55,3356.4,3356.0,1.189495]
[1732447498839,0.55,3356.6,3356.0,1.189495]
[1732447499045,0.55,3356.2,3356.0,1.189495]
[1732447499588,0.59610418,3356.1,3356.0,1.189495]
[1732447501843,0.04610418,3356.1,3356.0,1.6084445]
[1732447502050,0.55,3356.3,3356.0,1.6084445]
[1732447502279,0.04603771,3356.1,3356.0,1.189495]
[1732447502449,0.55,3356.3,3356.0,1.189495]
[1732447502647,0.04603771,3356.1,3356.0,1.189495]
[1732447502877,0.55,3356.3,3356.0,1.189495]
[1732447503086,0.04586855,3356.1,3356.0,1.189495]
[1732447503253,0.55,3356.3,3356.0,1.189495]
[1732447503459,0.04589272,3356.1,3356.0,1.189495]
[1732447503687,0.55,3356.3,3356.0,1.189495]
[1732447503883,0.0458897,3356.1,3356.0,1.189495]
[1732447504196,0.55,3356.3,3356.0,1.189495]
[1732447504352,0.04589574,3356.1,3356.0,5.9944445]
[1732447504685,0.8063,3357.5,3356.1,3.0]
[1732447504893,8.90864148,3357.4,3356.1,3.0]
[1732447505091,8.87140243,3357.4,3356.1,3.0]
[1732447505388,0.04591991,3357.3,3356.1,3.0]
[1732447505780,0.55,3357.2,3356.1,3.0]
[1732447505978,0.8063,3357.9,3356.2,1.386]
[1732447506210,0.08315317,3357.8,3356.3,1.386]
[1732447506504,8.91732234,3357.8,3356.5,1.386]
[1732447507375,0.03723117,3357.7,3356.5,1.386]
[1732447507704,0.04604979,3357.6,3356.5,1.386]
[1732447507917,0.04604979,3357.6,3357.0,3.0]
[1732447508087,0.55,3357.5,3357.1,1.386]
[1732447508284,0.55,3357.6,3357.1,1.386]
[1732447508490,0.55,3357.3,3357.1,1.386]
[1732447508701,0.55,3357.6,3357.1,1.386]
[1732447509013,0.55,3357.2,3357.1,1.386]
[1732447509401,0.55,3357.4,3357.1,1.386]
[1732447509709,0.59604979,3357.2,3357.1,1.386]
[1732447509925,0.55,3357.2,3357.1,1.386]
[1732447510131,3.0,3359.6,3357.1,1.386]
[1732447510132,0.8063,3358.7,3357.1,1.386]
[1732447510415,8.87140243,3358.6,3356.9,1.3572]
[1732447510577,8.87140243,3358.6,3357.9,3.0]
[1732447510778,8.90862727,3358.5,3356.9,1.3572]
[1732447511088,8.87140243,3358.4,3356.9,1.3572]
[1732447511620,0.55,3358.3,3357.7,1.3572]
[1732447511916,0.8063,3358.7,3357.7,1.3572]
[1732447511917,0.55,3358.1,3357.7,1.3572]
[1732447516157,8.87140243,3359.3,3357.7,1.3572]
[1732447516356,8.87140243,3359.2,3358.5,1.3572]
[1732447516552,8.87140243,3359.4,3358.5,1.3572]
[1732447517337,9.67770243,3359.5,3358.5,1.3572]
[1732447517656,0.04250906,3359.4,3359.1,3.0]
[1732447517846,0.04250906,3359.4,3358.5,1.3572]
[1732447518046,0.04250906,3359.4,3359.1,3.0]
[1732447518347,0.04250906,3359.4,3358.5,1.3572]
[1732447519177,0.55,3359.3,3358.5,1.3572]
[1732447519537,0.04272693,3359.2,3358.5,1.3572]
[1732447521542,8.87140243,3359.7,3358.5,1.3572]
[1732447522085,0.04279046,3359.6,3358.5,1.3572]
[1732447522244,0.04279046,3359.6,3358.5,0.36210122]
[1732447522579,0.04279046,3359.6,3357.8,0.3974]
[1732447522580,0.04279046,3359.6,3358.6,1.4332]
[1732447522751,0.00973959,3360.0,3359.7,3.0]
[1732447522960,0.00973959,3360.0,3359.5,1.4332]
[1732447523345,0.04279046,3359.9,3359.5,1.4332]
[1732447524047,0.04279046,3359.9,3359.7,3.0]
[1732447524275,0.04279046,3359.9,3359.5,1.4332]
[1732447524276,0.55,3359.8,3359.5,1.4332]
[1732447524798,0.55,3359.6,3359.5,1.4332]
[1732447525494,0.59279046,3359.6,3359.5,1.4332]
[1732447525883,0.59279046,3359.6,3359.5,1.61340791]
[1732447526204,0.04279046,3359.6,3359.5,1.61340791]
[1732447526562,0.00973959,3360.0,3359.5,1.61340791]
[1732447527063,1e-08,3360.0,3359.5,1.61340791]
[1732447529592,1e-08,3360.0,3359.5,0.497269]
[1732447529797,1e-08,3360.0,3359.6,1.75026109]
[1732447530007,1e-08,3360.0,3359.7,0.1930469]
[1732447530183,1e-08,3360.0,3359.8,1.4332]
[1732447530363,0.8063,3361.4,3359.8,1.4332]
[1732447530565,0.55,3361.3,3359.8,1.4332]
[1732447530803,0.59326543,3361.3,3359.8,1.4332]
[1732447531097,0.59326543,3361.3,3360.0,1.4332]
[1732447531673,0.04326543,3361.3,3360.0,1.4332]
[1732447531871,0.04326543,3361.3,3360.1,0.31706109]
[1732447532125,0.8068,3362.3,3361.4,3.0]
[1732447532305,8.87140243,3362.2,3361.0,1.4332]
[1732447532534,8.91523322,3362.2,3361.0,1.4332]
[1732447533051,1.3568,3362.0,3360.7,1.4332]
[1732447533216,0.55,3361.8,3360.7,1.4332]
[1732447533539,0.04383079,3361.7,3360.7,1.4332]
[1732447533727,0.55,3361.6,3360.7,1.4332]
[1732447533927,0.55,3361.6,3361.4,3.0]
[1732447534122,0.04383079,3361.5,3361.4,3.0]
[1732447534324,0.55,3361.4,3360.7,1.4332]
[1732447534535,0.55,3361.4,3360.7,1.425721]
[1732447534739,0.55,3361.6,3360.7,1.425721]
[1732447534912,0.55,3361.2,3360.7,1.60363963]
[1732447535116,0.55,3361.2,3360.7,1.425721]
[1732447535313,0.55,3361.0,3360.7,1.425721]
[1732447535941,0.55,3360.8,3360.7,1.425721]
[1732447536502,0.59383079,3360.8,3360.7,1.425721]
[1732447536709,8.87140243,3361.8,3360.7,1.60363963]
[1732447536710,0.55,3361.7,3360.7,1.60363963]
[1732447536915,0.04284729,3360.8,3360.7,1.425721]
[1732447537148,8.87140243,3361.5,3361.2,3.0]
[1732447537438,8.87140243,3361.5,3360.9,3.0]
[1732447537439,0.8143,3361.3,3360.9,3.0]
[1732447537639,0.8143,3361.3,3359.9,0.35242069]
[1732447537640,0.8143,3361.3,3360.0,1.3786]
[1732447537844,9.97946442,3361.2,3360.0,1.3786]
[1732447538001,8.91296124,3361.2,3360.0,1.3786]
[1732447538209,8.91296124,3361.2,3360.0,1.72667217]
[1732447538210,8.87140243,3361.1,3360.0,1.72667217]
[1732447538544,0.04154671,3361.0,3360.0,1.72667217]
[1732447538838,0.55,3360.9,3360.1,0.17266722]
[1732447539262,0.04154671,3360.8,3360.1,0.17266722]
[1732447539548,9.68570243,3361.1,3360.1,0.52073939]
[1732447539549,0.55,3360.7,3360.1,0.52073939]
[1732447539751,0.55,3360.6,3360.2,0.18993394]
[1732447539912,0.55,3360.6,3360.2,0.53800611]
[1732447540342,0.55,3360.4,3360.2,0.53800611]
[1732447540511,0.55,3360.4,3360.3,0.19166061]
[1732447541610,0.55,3360.4,3360.0,1.3786]
[1732447542055,0.55,3360.4,3360.0,1.72667217]
[1732447542354,0.55,3360.5,3359.7,0.34807217]
[1732447542559,0.55,3360.2,3359.3,1.4025]
[1732447542720,0.55,3360.0,3359.3,1.4025]
[1732447543472,0.55,3359.8,3358.7,1.4025]
[1732447543758,0.55,3359.8,3359.1,0.3264055]
[1732447543963,0.55,3360.0,3359.2,1.4025]
[1732447544113,8.87140243,3360.1,3359.2,1.4025]
[1732447544317,0.04156183,3359.9,3359.2,0.61843161]
[1732447544517,0.8143,3360.7,3359.3,1.4025]
[1732447544750,0.8143,3360.7,3359.4,0.17289055]
[1732447545515,0.55,3360.6,3359.4,0.17289055]
[1732447545755,0.55,3360.6,3360.1,3.0]
[1732447545951,0.55,3360.4,3359.4,0.17289055]
[1732447546159,0.55,3360.2,3360.1,3.0]
[1732447546459,8.91296426,3360.2,3359.6,1.4025]
[1732447547222,0.04156183,3360.2,3359.6,1.4025]
[1732447547561,8.87140243,3360.2,3359.6,1.4025]
[1732447547719,0.55,3360.0,3359.6,1.4025]
[1732447548171,0.55,3360.1,3359.6,1.4025]
[1732447548455,0.55,3359.8,3359.6,1.4025]
[1732447548964,0.55,3360.1,3359.6,1.4025]
[1732447549163,8.87140243,3360.2,3359.6,1.4025]
[1732447549164,0.04132585,3359.7,3359.6,1.4025]
[1732447549321,8.87140243,3360.2,3359.7,4.4025]
[1732447549519,8.87140243,3360.2,3359.8,1.4025]
[1732447550671,0.55,3360.1,3359.8,1.4025]
[1732447557744,0.55,3359.9,3359.8,1.4025]
[1732447557948,0.04141056,3360.0,3359.8,1.4025]
[1732447558180,8.87140243,3361.0,3359.8,1.4025]
[1732447558528,0.04141056,3360.9,3359.8,1.4025]
[1732447559449,8.87140243,3360.8,3359.8,1.4025]
[1732447559662,0.93645343,3360.7,3359.8,1.4025]
[1732447560134,0.55,3360.6,3360.5,3.0]
[1732447560338,0.55,3360.6,3359.8,1.4025]
[1732447560642,0.59144687,3360.6,3359.8,1.4025]
[1732447561262,0.59144687,3360.6,3359.9,0.2974]
[1732447561567,0.59144687,3360.6,3360.0,0.16999]
[1732447564082,0.04144687,3360.6,3360.0,0.16999]
[1732447564438,0.8143,3361.1,3361.0,3.0]
[1732447564639,0.8112,3361.0,3359.4,1.341]
[1732447564847,0.8112,3360.8,3358.8,0.17289055]
[1732447565050,0.8112,3360.6,3358.6,0.36633222]
[1732447565270,8.90860523,3360.7,3358.5,0.35210537]
[1732447565271,0.8112,3360.4,3358.5,0.35210537]
[1732447565478,0.55,3359.9,3358.0,2.58357228]
[1732447565679,0.55,3359.6,3358.1,3.33759121]
[1732447565986,0.55,3359.2,3358.1,0.77399618]
[1732447566144,0.55,3359.0,3358.0,0.35415836]
[1732447566491,0.55,3358.6,3357.7,1.341]
[1732447566789,0.55,3358.6,3357.8,0.29402179]
[1732447566968,0.55,3358.8,3357.8,1.69764565]
[1732447567140,0.0412078,3358.9,3357.9,1.341]
[1732447567141,0.55,3358.9,3357.9,1.341]
[1732447567345,0.55,3358.6,3358.0,0.35664565]
[1732447567884,0.55,3358.9,3358.0,0.35664565]
[1732447568054,0.55,3359.2,3358.1,0.50563507]
[1732447568261,0.55,3359.2,3358.2,1.69764565]
[1732447570193,0.03720983,3360.7,3358.2,1.69764565]
[1732447570194,0.8112,3359.7,3358.3,1.341]
[1732447570349,0.8112,3359.7,3358.4,0.35664565]
[1732447570550,0.8112,3359.7,3358.5,1.341]
[1732447570763,0.8112,3359.7,3359.6,3.0]
[1732447570960,0.8112,3359.7,3358.6,0.52641021]
[1732447571784,0.55,3359.6,3358.6,0.52641021]
[1732447571979,0.55,3359.6,3358.6,0.16976456]
[1732447572305,0.55,3359.2,3358.4,0.35598942]
[1732447572652,0.55,3359.0,3358.2,1.341]
[1732447573056,0.55,3358.8,3358.2,1.70656256]
[1732447573257,0.55,3358.8,3358.3,0.17065626]
[1732447573466,0.04073866,3358.7,3358.3,0.17065626]
[1732447573690,0.55,3358.8,3358.3,0.52730191]
[1732447573903,0.8112,3359.6,3358.4,0.5800321]
[1732447574068,0.8112,3359.6,3358.8,1.341]
[1732447574269,0.04069324,3359.5,3358.8,1.341]
[1732447574990,0.8112,3360.0,3358.8,1.341]
[1732447575173,0.03720413,3361.1,3358.8,1.341]
[1732447575174,0.0406781,3359.4,3358.8,1.341]
[1732447575358,0.0406781,3359.4,3358.4,0.32338645]
[1732447575559,0.8112,3360.3,3359.0,1.341]
[1732447575913,0.8112,3360.3,3359.1,1.341]
[1732447575914,0.0406781,3360.2,3359.1,1.341]
[1732447576391,0.8112,3360.6,3359.1,1.341]
[1732447576553,8.87140243,3360.5,3359.1,1.341]
[1732447576753,8.87140243,3360.5,3359.2,1.341]
[1732447576952,0.0406781,3360.4,3359.3,0.2682]
[1732447577207,0.0406781,3360.4,3359.4,1.341]
[1732447577392,0.0406781,3360.4,3359.4,0.35664565]
[1732447577696,0.0406781,3360.4,3359.5,1.341]
[1732447577866,0.0406781,3360.4,3359.6,0.16976456]
[1732447578063,0.8112,3360.9,3360.8,3.0]
[1732447578269,0.8112,3360.9,3359.6,0.16976456]
[1732447578464,0.8112,3360.9,3360.8,3.0]
[1732447578465,1.3612,3360.9,3360.8,3.0]
[1732447578780,0.55,3360.8,3359.6,0.16976456]
[1732447578962,0.55,3360.8,3359.7,0.18674102]
[1732447579298,0.0406781,3360.7,3359.7,0.18674102]
[1732447579458,0.55,3360.6,3359.7,0.18674102]
[1732447579654,0.55,3360.8,3359.7,0.18674102]
[1732447579899,0.55,3360.6,3359.7,0.18674102]
[1732447580280,0.55,3360.8,3359.7,0.18674102]
[1732447580466,0.55,3360.6,3359.7,0.18674102]
[1732447581012,0.55,3360.4,3359.7,0.18674102]
[1732447581711,0.55,3360.2,3359.7,0.18674102]
[1732447582084,0.55,3360.0,3359.7,0.18674102]
[1732447582600,0.55,3359.8,3359.7,0.18674102]
[1732447583000,0.3663,3359.8,3359.7,0.18674102]
[1732447585088,0.55,3360.8,3359.7,0.18674102]
[1732447585413,0.04109881,3360.7,3359.8,1.69144565]
[1732447585786,8.87140243,3361.2,3359.8,1.69144565]
[1732447586019,8.87140243,3361.2,3360.9,3.0]
[1732447586223,0.04152552,3361.1,3360.9,3.0]
[1732447586509,0.8112,3361.3,3360.4,1.3348]
[1732447586722,0.8112,3361.3,3361.0,3.0]
[1732447586877,0.8112,3361.3,3360.4,1.3348]
[1732447587078,0.55,3361.2,3360.4,1.3348]
[1732447587281,0.55,3361.0,3360.4,1.3348]
[1732447587511,0.55,3360.8,3360.4,1.3348]
[1732447588126,0.55,3360.6,3360.4,1.3348]
[1732447588529,0.59162535,3360.5,3360.4,1.6993598]
[1732447588732,0.59162535,3360.5,3360.4,1.3348]
[1732447589551,0.55,3360.4,3360.3,0.35418702]
[1732447589758,0.55,3360.4,3360.1,1.3348]
[1732447590076,0.55,3360.4,3360.1,0.7848]
[1732447590451,1.3612,3360.7,3360.1,0.15068338]
[1732447590655,8.87140243,3360.6,3359.8,0.36538818]
[1732447590959,10.23260243,3360.5,3359.3,0.2966]
[1732447591160,8.87140243,3360.4,3359.3,0.65324565]
[1732447591364,8.9129582,3360.4,3359.4,0.35664565]
[1732447592037,0.55,3360.3,3360.2,3.0]
[1732447592454,0.55,3360.3,3359.4,0.35664565]
[1732447592455,0.59155577,3360.3,3359.4,0.35664565]
[1732447592761,0.59155577,3360.3,3360.2,3.0]
[1732447593286,0.59155577,3360.3,3359.6,1.3348]
[1732447593499,0.59155577,3360.3,3360.2,3.0]
[1732447593693,0.59155577,3360.3,3359.7,0.16914457]
[1732447594151,0.59155577,3360.3,3359.3,1.3348]
[1732447594654,0.55,3360.4,3359.3,1.3348]
[1732447594866,0.55,3360.4,3359.3,1.69144565]
[1732447595066,0.55,3360.4,3359.3,2.04595182]
[1732447595370,0.55,3360.4,3359.4,0.20459518]
[1732447595773,0.55,3360.2,3359.4,0.20459518]
[1732447596061,0.55,3360.0,3359.3,2.04595182]
[1732447596599,0.55,3359.8,3359.3,2.04595182]
[1732447597110,0.55,3359.6,3359.3,2.04595182]
[1732447600976,0.22384058,3359.6,3359.3,2.04595182]
[1732447601181,1.3788,3360.3,3359.4,0.20459518]
[1732447601685,0.04001201,3360.2,3359.4,0.20459518]
[1732447602473,1.3788,3360.3,3359.4,0.20459518]
[1732447603291,0.55,3360.2,3359.4,0.20459518]
[1732447603611,0.55,3360.2,3359.5,0.18939014]
[1732447604284,0.03719796,3361.0,3359.3,0.35450617]
[1732447604285,0.55,3360.0,3359.3,1.72670617]
[1732447604485,0.55,3360.0,3359.3,1.3722]
[1732447604711,0.55,3359.8,3359.3,1.3722]
[1732447605081,0.55,3360.0,3359.3,1.3722]
[1732447605286,0.55,3359.8,3359.3,1.3722]
[1732447605614,0.55,3360.0,3359.3,1.3722]
[1732447605908,0.55,3359.6,3359.3,1.3722]
[1732447606131,0.55,3359.8,3359.4,0.16688]
[1732447606278,1.3609,3360.4,3359.4,0.16688]
[1732447606482,1.3609,3361.9,3359.6,1.3722]
[1732447606708,0.1,3362.3,3359.6,1.3722]
[1732447606709,1.3609,3361.7,3359.7,0.18827537]
[1732447607020,1.3609,3361.5,3359.7,0.18827537]
[1732447607788,0.03719315,3361.4,3359.7,0.18827537]
[1732447607989,1.3609,3361.3,3359.8,0.2367629]
[1732447608192,1.3609,3361.1,3360.9,3.0]
[1732447608429,0.55,3360.8,3359.8,0.2367629]
[1732447608630,1.3609,3360.5,3359.3,0.2966]
[1732447608815,1.3609,3360.1,3358.5,1.3722]
[1732447609016,0.55,3359.8,3358.5,1.3722]
[1732447609324,0.55,3359.6,3358.5,1.3722]
[1732447609526,0.55,3359.6,3358.6,0.2966]
[1732447611233,0.55,3359.4,3358.6,0.2966]
[1732447611530,0.03720512,3360.1,3358.7,0.20224853]
[1732447611531,0.55,3359.2,3358.7,0.20224853]
[1732447611821,0.55,3359.0,3358.0,0.2966]
[1732447612021,0.55,3359.0,3358.0,0.66174094]
[1732447612185,8.87140243,3359.8,3358.1,0.49999409]
[1732447612186,0.55,3358.8,3358.1,0.49999409]
[1732447612386,0.55,3358.6,3358.1,0.2966]
[1732447612817,0.03966654,3358.5,3358.1,0.2966]
[1732447613131,0.03966654,3358.5,3357.6,1.74002964]
[1732447613132,0.55,3358.4,3357.7,0.2966]
[1732447613301,0.55,3358.4,3357.9,0.2966]
[1732447613492,0.55,3358.6,3357.9,0.2966]
[1732447613705,0.03966654,3358.5,3357.9,0.2966]
[1732447613910,0.03966654,3358.5,3358.0,0.70758516]
[1732447614141,0.55,3358.6,3358.0,0.70758516]
[1732447614705,0.54,3358.6,3358.0,0.70758516]
[1732447614943,1.3609,3359.2,3358.1,1.68976258]
[1732447615244,1.3609,3359.2,3358.2,0.56893739]
[1732447615432,0.03966654,3359.1,3358.1,1.3722]
[1732447616018,1.3609,3359.0,3357.8,1.6688]
[1732447616349,1.3609,3359.0,3357.9,0.19863626]
[1732447616550,0.03966654,3358.9,3357.9,0.19863626]